[Event "GrandPrix_29.05"]
[Site "Chess.com"]
[Date "2020.05.29"]
[Round "3"]
[White "BogdanDeac"]
[Black "Bestromano"]
[Result "1-0"]
[WhiteElo "2159"]
[BlackElo "1652"]
[TimeControl "600+2"]
[EndTime "10:19:02 PDT"]
[Termination "BogdanDeac won by resignation"]

1. Nf3 {[%clk 0:10:01.9]} 1... c5 {[%clk 0:09:59.2]} 2. e3 {[%clk 0:10:02.2]}
2... g6 {[%clk 0:09:59]} 3. d4 {[%clk 0:10:02.7]} 3... b6 {[%clk 0:10:00]} 4.
dxc5 {[%clk 0:10:02.1]} 4... bxc5 {[%clk 0:09:59.2]} 5. Qd5 {[%clk 0:10:02.9]}
5... Nc6 {[%clk 0:09:56.4]} 6. Qxc5 {[%clk 0:10:03.2]} 6... Bg7 {[%clk
0:09:56.6]} 7. Bd3 {[%clk 0:09:56.9]} 7... Rb8 {[%clk 0:09:53.4]} 8. Nc3 {[%clk
0:09:55.1]} 8... Nf6 {[%clk 0:09:47.9]} 9. O-O {[%clk 0:09:55.4]} 9... Bb7
{[%clk 0:09:46.2]} 10. e4 {[%clk 0:09:55.9]} 10... d6 {[%clk 0:09:46.7]} 11. Qg5
{[%clk 0:09:52.7]} 11... O-O {[%clk 0:09:32.7]} 12. Qh4 {[%clk 0:09:52.9]} 12...
Nb4 {[%clk 0:09:29.9]} 13. Bh6 {[%clk 0:09:51.1]} 13... Nxd3 {[%clk 0:09:27]}
14. cxd3 {[%clk 0:09:51.7]} 14... Ba6 {[%clk 0:09:28.4]} 15. Bxg7 {[%clk
0:09:29]} 15... Kxg7 {[%clk 0:09:30.3]} 16. b3 {[%clk 0:09:30.2]} 16... Qa5
{[%clk 0:09:19.8]} 17. e5 {[%clk 0:09:09.6]} 17... Qxc3 {[%clk 0:09:01.4]} 18.
exf6+ {[%clk 0:09:09.5]} 18... Qxf6 {[%clk 0:09:01.4]} 19. Qxf6+ {[%clk
0:09:09.6]} 19... Kxf6 {[%clk 0:09:02.3]} 20. Rfd1 {[%clk 0:09:09.8]} 20... Rfc8
{[%clk 0:09:02.8]} 21. Rd2 {[%clk 0:09:10.4]} 21... Rc3 {[%clk 0:09:03.3]} 22.
d4 {[%clk 0:09:10.5]} 22... Rbc8 {[%clk 0:09:02.8]} 23. h3 {[%clk 0:09:11.1]}
23... Bb7 {[%clk 0:09:01.9]} 24. Ne1 {[%clk 0:09:10.5]} 24... Rc1 {[%clk
0:09:02.2]} 25. Rd1 {[%clk 0:09:11.3]} 25... Rxa1 {[%clk 0:09:00.7]} 26. Rxa1
{[%clk 0:09:12.2]} 26... Rc3 {[%clk 0:08:24.3]} 27. f3 {[%clk 0:09:12.2]} 27...
Ke6 {[%clk 0:08:19.8]} 28. Kf2 {[%clk 0:09:12.5]} 28... Kd5 {[%clk 0:08:20.8]}
29. Rd1 {[%clk 0:09:13]} 29... Ba6 {[%clk 0:08:19.1]} 30. Rd2 {[%clk 0:09:13.4]}
30... h5 {[%clk 0:08:15.7]} 31. h4 {[%clk 0:09:13.3]} 31... Bb5 {[%clk
0:08:08.2]} 32. Kg3 {[%clk 0:09:10.2]} 32... f6 {[%clk 0:08:03.1]} 33. Kf2
{[%clk 0:09:10.2]} 33... a5 {[%clk 0:08:00.7]} 34. g3 {[%clk 0:09:11]} 34... Ba6
{[%clk 0:07:38.3]} 35. Ng2 {[%clk 0:09:11]} 35... g5 {[%clk 0:07:19.4]} 36. Ne3+
{[%clk 0:09:02.3]} 36... Ke6 {[%clk 0:07:04.9]} 37. Rc2 {[%clk 0:09:02.8]} 37...
Rd3 {[%clk 0:06:35.6]} 38. Rc7 {[%clk 0:08:55.9]} 38... Rd2+ {[%clk 0:06:28.2]}
39. Kg1 {[%clk 0:08:56.2]} 39... Rxd4 {[%clk 0:06:28]} 40. Rxe7+ {[%clk
0:08:55.7]} 40... Kxe7 {[%clk 0:06:27.3]} 41. Nf5+ {[%clk 0:08:57.2]} 41... Ke6
{[%clk 0:06:06]} 42. Nxd4+ {[%clk 0:08:59.1]} 42... Kd5 {[%clk 0:06:07.5]} 43.
Nf5 {[%clk 0:08:55.1]} 43... gxh4 {[%clk 0:06:07.7]} 44. gxh4 {[%clk 0:08:53.2]}
44... Ke5 {[%clk 0:06:09]} 45. Ng3 {[%clk 0:08:52.6]} 45... Bd3 {[%clk
0:05:09.4]} 46. Nxh5 {[%clk 0:08:50]} 46... Bb1 {[%clk 0:05:10.2]} 47. a3 {[%clk
0:08:50]} 47... f5 {[%clk 0:04:07.7]} 48. Ng3 {[%clk 0:08:44.5]} 48... f4 {[%clk
0:04:06.3]} 49. Ne2 {[%clk 0:08:44.3]} 49... d5 {[%clk 0:04:01.7]} 50. Kf2
{[%clk 0:08:44.8]} 50... d4 {[%clk 0:04:02.6]} 51. Ke1 {[%clk 0:08:45.5]} 51...
Ba2 {[%clk 0:03:50.4]} 52. Nc1 {[%clk 0:08:41.3]} 52... Bb1 {[%clk 0:03:50.9]}
53. Kd2 {[%clk 0:08:42.4]} 53... Bg6 {[%clk 0:03:45.9]} 54. Nd3+ {[%clk
0:08:41.4]} 54... Kf5 {[%clk 0:03:47]} 55. b4 {[%clk 0:08:09.3]} 55... axb4
{[%clk 0:03:48.9]} 56. axb4 {[%clk 0:08:10.7]} 56... Be8 {[%clk 0:03:49.8]} 57.
Ne1 {[%clk 0:08:11.2]} 57... Ke5 {[%clk 0:03:40.9]} 58. Nd3+ {[%clk 0:07:54.5]}
58... Kf5 {[%clk 0:03:41.3]} 59. Nc5 {[%clk 0:07:52.1]} 59... Bc6 {[%clk
0:03:39.1]} 60. Ke2 {[%clk 0:07:51.9]} 60... Bb5+ {[%clk 0:03:40.5]} 61. Kf2
{[%clk 0:07:52.8]} 61... Bc6 {[%clk 0:03:42.2]} 62. Nb3 {[%clk 0:07:51.2]} 62...
Ke5 {[%clk 0:03:40.7]} 63. h5 {[%clk 0:07:51.8]} 63... Bd5 {[%clk 0:03:35]} 64.
h6 {[%clk 0:07:48.9]} 64... Kf6 {[%clk 0:03:33]} 65. Nxd4 {[%clk 0:07:48.1]}
65... Kg6 {[%clk 0:03:34.5]} 66. b5 {[%clk 0:07:30.5]} 66... Kxh6 {[%clk
0:03:33]} 67. b6 {[%clk 0:07:31.5]} 67... Kg6 {[%clk 0:03:27.4]} 68. Nb5 {[%clk
0:07:32]} 68... Kf6 {[%clk 0:03:21.2]} 69. Nd6 {[%clk 0:07:32.6]} 69... Ke6
{[%clk 0:03:19]} 70. b7 {[%clk 0:07:33.2]} 1-0

[Event "GrandPrix_29.05"]
[Site "Chess.com"]
[Date "2020.05.29"]
[Round "3"]
[White "econpower"]
[Black "jafarlib"]
[Result "1/2-1/2"]
[WhiteElo "1973"]
[BlackElo "2114"]
[TimeControl "600+2"]
[EndTime "10:19:03 PDT"]
[Termination "Game drawn by repetition"]

1. c4 {[%clk 0:10:01.9]} 1... e5 {[%clk 0:09:59.4]} 2. g3 {[%clk 0:10:01.4]}
2... g6 {[%clk 0:09:59.8]} 3. Bg2 {[%clk 0:10:02.4]} 3... Bg7 {[%clk 0:10:01]}
4. Nc3 {[%clk 0:10:03.9]} 4... Nc6 {[%clk 0:10:01.6]} 5. e3 {[%clk 0:10:05.3]}
5... Nge7 {[%clk 0:10:02.2]} 6. Nge2 {[%clk 0:10:06.5]} 6... O-O {[%clk
0:10:02.9]} 7. O-O {[%clk 0:10:07.4]} 7... d6 {[%clk 0:10:02.6]} 8. Rb1 {[%clk
0:10:08]} 8... Be6 {[%clk 0:10:03.1]} 9. Nd5 {[%clk 0:10:08.6]} 9... Qd7 {[%clk
0:10:01.5]} 10. d3 {[%clk 0:10:07.3]} 10... Nd8 {[%clk 0:10:00.1]} 11. b4 {[%clk
0:10:03.8]} 11... c6 {[%clk 0:10:01]} 12. Nxe7+ {[%clk 0:10:04.9]} 12... Qxe7
{[%clk 0:10:02.9]} 13. b5 {[%clk 0:10:06.6]} 13... f5 {[%clk 0:09:58.1]} 14.
bxc6 {[%clk 0:10:06.6]} 14... bxc6 {[%clk 0:09:58.5]} 15. Ba3 {[%clk 0:10:06.1]}
15... g5 {[%clk 0:09:43]} 16. f4 {[%clk 0:09:35.9]} 16... gxf4 {[%clk
0:09:26.6]} 17. gxf4 {[%clk 0:09:33]} 17... Rc8 {[%clk 0:09:13.7]} 18. fxe5
{[%clk 0:09:26.8]} 18... Bxe5 {[%clk 0:09:13.2]} 19. Nf4 {[%clk 0:09:27.3]}
19... Kh8 {[%clk 0:09:10.3]} 20. Kh1 {[%clk 0:08:39.7]} 20... Rg8 {[%clk
0:09:02.7]} 21. Qh5 {[%clk 0:07:43.6]} 21... Rg5 {[%clk 0:08:28.2]} 22. Qh4
{[%clk 0:07:30.1]} 22... Nf7 {[%clk 0:08:18.8]} 23. Ng6+ {[%clk 0:07:25.7]}
23... Rxg6 {[%clk 0:08:13.1]} 24. Qxe7 {[%clk 0:07:26.4]} 24... Rh6 {[%clk
0:07:54.5]} 25. h3 {[%clk 0:07:17.6]} 25... Rg8 {[%clk 0:07:49.3]} 26. Bb2
{[%clk 0:07:07.3]} 26... f4 {[%clk 0:07:46.8]} 27. Kh2 {[%clk 0:05:17.1]} 27...
f3+ {[%clk 0:07:29.9]} 28. Bxe5+ {[%clk 0:05:16.8]} 28... Nxe5 {[%clk
0:07:31.3]} 29. Rb2 {[%clk 0:04:37]} 29... Bxh3 {[%clk 0:05:50.7]} 30. Qxe5+
{[%clk 0:04:34.6]} 30... dxe5 {[%clk 0:05:51.4]} 31. Bxh3 {[%clk 0:04:36.5]}
31... Rf8 {[%clk 0:05:50]} 32. Rbf2 {[%clk 0:04:36.8]} 32... Rd6 {[%clk
0:05:45.7]} 33. Rxf3 {[%clk 0:04:35.8]} 33... Rxf3 {[%clk 0:05:46.3]} 34. Rxf3
{[%clk 0:04:37.7]} 34... Rxd3 {[%clk 0:05:48]} 35. Kg3 {[%clk 0:04:37.1]} 35...
e4 {[%clk 0:05:49]} 36. Rf8+ {[%clk 0:04:24.3]} 36... Kg7 {[%clk 0:05:49.5]} 37.
Ra8 {[%clk 0:04:25.2]} 37... Rxe3+ {[%clk 0:05:50.4]} 38. Kh4 {[%clk 0:04:26.8]}
38... Ra3 {[%clk 0:05:51.3]} 39. Rc8 {[%clk 0:04:21.2]} 39... Kf6 {[%clk
0:05:43.2]} 40. Re8 {[%clk 0:04:09]} 40... e3 {[%clk 0:05:35.9]} 41. Re6+ {[%clk
0:04:08.9]} 41... Kf7 {[%clk 0:05:35.3]} 42. Rxc6 {[%clk 0:04:09.9]} 42... e2
{[%clk 0:05:36.2]} 43. Rc7+ {[%clk 0:04:02.1]} 43... Ke8 {[%clk 0:05:10.6]} 44.
Rc8+ {[%clk 0:04:02.1]} 44... Ke7 {[%clk 0:05:11.7]} 45. Rc7+ {[%clk 0:04:02.6]}
45... Kd8 {[%clk 0:05:11.8]} 46. Rc8+ {[%clk 0:04:01.4]} 46... Ke7 {[%clk
0:05:12.9]} 47. Rc7+ {[%clk 0:04:02.8]} 47... Kd8 {[%clk 0:05:13.6]} 48. Rc8+
{[%clk 0:03:57.2]} 48... Ke7 {[%clk 0:05:14.2]} 1/2-1/2

[Event "GrandPrix_29.05"]
[Site "Chess.com"]
[Date "2020.05.29"]
[Round "3"]
[White "tsvet2005"]
[Black "arminmusovic"]
[Result "1/2-1/2"]
[WhiteElo "2164"]
[BlackElo "2284"]
[TimeControl "600+2"]
[EndTime "10:19:16 PDT"]
[Termination "Game drawn by agreement"]

1. d4 {[%clk 0:10:01.9]} 1... d5 {[%clk 0:10:00.7]} 2. c4 {[%clk 0:10:03.2]}
2... c5 {[%clk 0:10:02.2]} 3. cxd5 {[%clk 0:09:46.9]} 3... e6 {[%clk 0:10:02.3]}
4. Nc3 {[%clk 0:09:40.2]} 4... exd5 {[%clk 0:10:01.9]} 5. Nf3 {[%clk 0:09:39.8]}
5... Nc6 {[%clk 0:10:02]} 6. g3 {[%clk 0:09:40.9]} 6... h6 {[%clk 0:10:01.2]} 7.
Bg2 {[%clk 0:09:41.2]} 7... Nf6 {[%clk 0:10:02.7]} 8. O-O {[%clk 0:09:42]} 8...
Be7 {[%clk 0:10:04.3]} 9. dxc5 {[%clk 0:09:42.9]} 9... Bxc5 {[%clk 0:10:06.2]}
10. Na4 {[%clk 0:09:44]} 10... Be7 {[%clk 0:10:04.7]} 11. Be3 {[%clk 0:09:45]}
11... O-O {[%clk 0:10:03.9]} 12. Rc1 {[%clk 0:09:45.5]} 12... Re8 {[%clk
0:10:04.1]} 13. Nd4 {[%clk 0:09:42.5]} 13... Bd7 {[%clk 0:09:58.5]} 14. Nc5
{[%clk 0:09:32.2]} 14... Ne5 {[%clk 0:08:08.1]} 15. Nxb7 {[%clk 0:08:29.5]}
15... Qb6 {[%clk 0:08:02.9]} 16. Nc6 {[%clk 0:08:10.5]} 16... Qxb7 {[%clk
0:07:54.5]} 17. Nxe5 {[%clk 0:08:07.3]} 17... Bf5 {[%clk 0:07:38.4]} 18. Nc6
{[%clk 0:07:00.4]} 18... Qxb2 {[%clk 0:07:17.2]} 19. Bd4 {[%clk 0:06:55.7]}
19... Qa3 {[%clk 0:06:57.4]} 20. Nxe7+ {[%clk 0:05:22.7]} 20... Qxe7 {[%clk
0:06:54.1]} 21. Bxf6 {[%clk 0:05:23.9]} 21... Qxf6 {[%clk 0:06:54.7]} 22. Qxd5
{[%clk 0:05:24.1]} 22... Rad8 {[%clk 0:06:41.2]} 23. Qb5 {[%clk 0:05:07]} 23...
a6 {[%clk 0:06:21.5]} 24. Qa5 {[%clk 0:04:57]} 24... Re5 {[%clk 0:05:43.7]} 25.
Rc5 {[%clk 0:04:45.9]} 25... Rxc5 {[%clk 0:05:35.4]} 26. Qxc5 {[%clk 0:04:47.8]}
26... Rd2 {[%clk 0:05:36.7]} 27. e4 {[%clk 0:04:32.5]} 27... Be6 {[%clk
0:05:25.1]} 28. a4 {[%clk 0:04:30.2]} 28... Qd4 {[%clk 0:05:00.6]} 29. Qxd4
{[%clk 0:02:41.9]} 29... Rxd4 {[%clk 0:05:02.5]} 30. Ra1 {[%clk 0:02:43]} 30...
a5 {[%clk 0:05:03.2]} 31. Bf1 {[%clk 0:02:42]} 1/2-1/2

[Event "GrandPrix_29.05"]
[Site "Chess.com"]
[Date "2020.05.29"]
[Round "3"]
[White "Inspiration1"]
[Black "gross-aleks"]
[Result "0-1"]
[WhiteElo "1365"]
[BlackElo "2074"]
[TimeControl "600+2"]
[EndTime "10:19:24 PDT"]
[Termination "gross-aleks won by resignation"]

1. d4 {[%clk 0:09:56.5]} 1... Nf6 {[%clk 0:07:01.1]} 2. Bf4 {[%clk 0:09:53.6]}
2... c6 {[%clk 0:07:01.3]} 3. c4 {[%clk 0:09:40.7]} 3... d6 {[%clk 0:07:02.2]}
4. Nc3 {[%clk 0:09:40.1]} 4... Nbd7 {[%clk 0:07:02.7]} 5. Nf3 {[%clk 0:09:38.7]}
5... Qc7 {[%clk 0:06:59.1]} 6. e3 {[%clk 0:09:35.7]} 6... e5 {[%clk 0:06:59.5]}
7. Bg3 {[%clk 0:09:36.5]} 7... Be7 {[%clk 0:06:30.8]} 8. Be2 {[%clk 0:09:33]}
8... O-O {[%clk 0:06:28.4]} 9. Qc2 {[%clk 0:09:30.8]} 9... Re8 {[%clk
0:06:17.9]} 10. Rd1 {[%clk 0:09:11.6]} 10... Bf8 {[%clk 0:06:11.8]} 11. h3
{[%clk 0:08:51.9]} 11... a6 {[%clk 0:06:09.5]} 12. O-O {[%clk 0:08:48.9]} 12...
b5 {[%clk 0:05:40.8]} 13. c5 {[%clk 0:08:43.4]} 13... dxc5 {[%clk 0:05:28.2]}
14. Nxe5 {[%clk 0:08:26.9]} 14... Nxe5 {[%clk 0:05:28.8]} 15. dxe5 {[%clk
0:08:24.5]} 15... Rxe5 {[%clk 0:05:28.2]} 16. Bxe5 {[%clk 0:08:22.3]} 16... Qxe5
{[%clk 0:05:30.1]} 17. Rd8 {[%clk 0:08:19.1]} 17... Bf5 {[%clk 0:03:48.3]} 18.
Qd2 {[%clk 0:08:06.5]} 18... Ne4 {[%clk 0:03:19.1]} 19. Nxe4 {[%clk 0:08:03.7]}
19... Rxd8 {[%clk 0:03:19.1]} 20. Qxd8 {[%clk 0:08:02.7]} 20... Bxe4 {[%clk
0:03:19.5]} 21. Rd1 {[%clk 0:07:45.7]} 21... Qxb2 {[%clk 0:02:37.9]} 22. Bf3
{[%clk 0:07:44.7]} 22... Bxf3 {[%clk 0:02:30.3]} 23. gxf3 {[%clk 0:07:45.5]}
23... c4 {[%clk 0:02:10.4]} 24. Qe8 {[%clk 0:07:44.4]} 24... c3 {[%clk
0:02:02.1]} 25. Qxc6 {[%clk 0:07:19.7]} 25... c2 {[%clk 0:01:58.1]} 26. Rf1
{[%clk 0:07:19.4]} 26... g6 {[%clk 0:01:52.6]} 0-1

[Event "GrandPrix_29.05"]
[Site "Chess.com"]
[Date "2020.05.29"]
[Round "3"]
[White "ftorodent"]
[Black "kayrakamer"]
[Result "1-0"]
[WhiteElo "2075"]
[BlackElo "2080"]
[TimeControl "600+2"]
[EndTime "10:19:26 PDT"]
[Termination "ftorodent won by resignation"]

1. d4 {[%clk 0:10:01.9]} 1... Nf6 {[%clk 0:10:00.7]} 2. c4 {[%clk 0:10:02]} 2...
g6 {[%clk 0:10:01.8]} 3. Nc3 {[%clk 0:10:00.3]} 3... Bg7 {[%clk 0:10:03.1]} 4.
e4 {[%clk 0:10:00.1]} 4... d6 {[%clk 0:10:04.5]} 5. Nf3 {[%clk 0:10:00.4]} 5...
O-O {[%clk 0:10:05.9]} 6. Be2 {[%clk 0:10:00.8]} 6... Bg4 {[%clk 0:10:07.1]} 7.
Be3 {[%clk 0:09:56.5]} 7... Nfd7 {[%clk 0:10:07.9]} 8. O-O {[%clk 0:09:35.2]}
8... c5 {[%clk 0:10:07.4]} 9. d5 {[%clk 0:09:21.3]} 9... Na6 {[%clk 0:10:08.2]}
10. Rc1 {[%clk 0:09:13.9]} 10... Nc7 {[%clk 0:10:06.8]} 11. Nd2 {[%clk
0:09:00.1]} 11... Bxe2 {[%clk 0:10:08]} 12. Qxe2 {[%clk 0:09:01.2]} 12... e6
{[%clk 0:10:09.3]} 13. Bf4 {[%clk 0:08:12]} 13... e5 {[%clk 0:09:59.4]} 14. Be3
{[%clk 0:08:09.7]} 14... f5 {[%clk 0:10:01]} 15. f3 {[%clk 0:08:10.5]} 15... f4
{[%clk 0:10:02.5]} 16. Bf2 {[%clk 0:08:11.2]} 16... g5 {[%clk 0:10:04.4]} 17. a3
{[%clk 0:08:07.1]} 17... h5 {[%clk 0:10:03.8]} 18. b4 {[%clk 0:08:03]} 18... b6
{[%clk 0:10:05.1]} 19. Nb5 {[%clk 0:07:50.1]} 19... Nxb5 {[%clk 0:09:59.9]} 20.
cxb5 {[%clk 0:07:50.8]} 20... Nf6 {[%clk 0:10:00.4]} 21. bxc5 {[%clk 0:07:44.3]}
21... bxc5 {[%clk 0:10:02.3]} 22. Nc4 {[%clk 0:07:41.1]} 22... Qd7 {[%clk
0:09:46.3]} 23. a4 {[%clk 0:07:39]} 23... g4 {[%clk 0:09:44.8]} 24. Rb1 {[%clk
0:07:27.5]} 24... Rf7 {[%clk 0:09:33]} 25. Rfc1 {[%clk 0:07:23.4]} 25... Bf8
{[%clk 0:09:32.7]} 26. a5 {[%clk 0:07:22.2]} 26... Rg7 {[%clk 0:09:31.8]} 27.
Bh4 {[%clk 0:07:17.3]} 27... Nh7 {[%clk 0:09:23]} 28. b6 {[%clk 0:07:12.3]}
28... Be7 {[%clk 0:09:23.9]} 29. b7 {[%clk 0:06:59.5]} 29... Rb8 {[%clk
0:09:23.7]} 30. Bxe7 {[%clk 0:06:59.5]} 30... Qxe7 {[%clk 0:09:25.1]} 31. a6
{[%clk 0:06:59.7]} 31... Ng5 {[%clk 0:09:19.4]} 32. Kh1 {[%clk 0:06:49]} 32...
g3 {[%clk 0:08:34]} 33. Na5 {[%clk 0:06:29.3]} 33... Nf7 {[%clk 0:08:16.7]} 34.
Nc6 {[%clk 0:04:29.1]} 34... Qh4 {[%clk 0:08:16.1]} 35. h3 {[%clk 0:04:30.1]}
35... Ng5 {[%clk 0:08:16.3]} 36. Rc2 {[%clk 0:04:14.4]} 36... Nxh3 {[%clk
0:08:08.1]} 37. gxh3 {[%clk 0:04:14.3]} 37... Qxh3+ {[%clk 0:08:10]} 38. Kg1
{[%clk 0:04:15.5]} 38... g2 {[%clk 0:08:11.3]} 39. Qxg2 {[%clk 0:04:11.7]} 39...
Qxf3 {[%clk 0:08:11.9]} 40. Nxb8 {[%clk 0:03:58.8]} 40... Qxe4 {[%clk
0:06:49.3]} 41. Nc6 {[%clk 0:03:16.2]} 41... Qe3+ {[%clk 0:05:30.9]} 42. Kh2
{[%clk 0:03:05.8]} 1-0

[Event "GrandPrix_29.05"]
[Site "Chess.com"]
[Date "2020.05.29"]
[Round "3"]
[White "Nikithebest"]
[Black "fm_magua"]
[Result "1/2-1/2"]
[WhiteElo "2130"]
[BlackElo "1787"]
[TimeControl "600+2"]
[EndTime "10:19:59 PDT"]
[Termination "Game drawn by agreement"]

1. e4 {[%clk 0:10:01.9]} 1... c5 {[%clk 0:09:59.7]} 2. Nf3 {[%clk 0:10:01]} 2...
Nc6 {[%clk 0:10:00.4]} 3. Bb5 {[%clk 0:09:59.5]} 3... g6 {[%clk 0:10:00.7]} 4.
O-O {[%clk 0:09:58.1]} 4... Bg7 {[%clk 0:10:01.7]} 5. Nc3 {[%clk 0:09:59.4]}
5... Nf6 {[%clk 0:10:02.9]} 6. e5 {[%clk 0:09:54.7]} 6... Ng4 {[%clk 0:10:02.6]}
7. Bxc6 {[%clk 0:09:53.6]} 7... dxc6 {[%clk 0:10:03.8]} 8. Re1 {[%clk
0:09:53.3]} 8... O-O {[%clk 0:09:51.2]} 9. h3 {[%clk 0:09:47.5]} 9... Nh6 {[%clk
0:09:52.1]} 10. d3 {[%clk 0:09:48.1]} 10... Nf5 {[%clk 0:09:51.8]} 11. Ne4
{[%clk 0:09:43.2]} 11... b6 {[%clk 0:09:51.7]} 12. a4 {[%clk 0:09:35.1]} 12...
a5 {[%clk 0:09:52.5]} 13. Qe2 {[%clk 0:09:02.3]} 13... Nd4 {[%clk 0:09:49]} 14.
Nxd4 {[%clk 0:08:57.1]} 14... cxd4 {[%clk 0:09:50.9]} 15. Bf4 {[%clk 0:08:53.1]}
15... c5 {[%clk 0:09:48.2]} 16. b3 {[%clk 0:08:50.8]} 16... h6 {[%clk 0:09:41]}
17. h4 {[%clk 0:08:39.7]} 17... Be6 {[%clk 0:09:38]} 18. Qf3 {[%clk 0:08:27.4]}
18... Qd7 {[%clk 0:09:32.2]} 19. Qg3 {[%clk 0:08:25.5]} 19... Bf5 {[%clk
0:09:22.1]} 20. Nd2 {[%clk 0:08:13.2]} 20... Rae8 {[%clk 0:09:13.5]} 21. Nc4
{[%clk 0:07:36.3]} 21... Qc6 {[%clk 0:09:12.1]} 22. Bd2 {[%clk 0:07:23.4]} 22...
Kh7 {[%clk 0:09:00.6]} 23. Qf4 {[%clk 0:07:11.8]} 23... Bc8 {[%clk 0:08:57.4]}
24. Qe4 {[%clk 0:06:38.7]} 24... Qc7 {[%clk 0:08:51.6]} 25. Bf4 {[%clk
0:05:59.3]} 25... Bb7 {[%clk 0:08:37.8]} 26. Qe2 {[%clk 0:05:54]} 26... Qc6
{[%clk 0:08:37.1]} 27. f3 {[%clk 0:05:51.4]} 27... Qe6 {[%clk 0:08:32.4]} 28.
Qf2 {[%clk 0:05:47.8]} 28... Bd5 {[%clk 0:08:31.8]} 29. Qg3 {[%clk 0:05:47.6]}
29... Rc8 {[%clk 0:08:09]} 30. Kf2 {[%clk 0:05:44.7]} 30... Rc6 {[%clk
0:08:09.8]} 31. Re2 {[%clk 0:05:43.2]} 31... Qf5 {[%clk 0:08:02.8]} 32. Kg1
{[%clk 0:05:31.4]} 32... Re6 {[%clk 0:07:58.1]} 33. Rae1 {[%clk 0:05:31.4]}
33... h5 {[%clk 0:06:58.9]} 34. Qg5 {[%clk 0:05:07.2]} 34... Qxg5 {[%clk
0:06:47.3]} 35. Bxg5 {[%clk 0:05:09.1]} 35... Bh6 {[%clk 0:06:45.9]} 36. Bxh6
{[%clk 0:05:08.1]} 36... Kxh6 {[%clk 0:06:47]} 37. f4 {[%clk 0:05:08]} 37... Rc8
{[%clk 0:06:38.4]} 38. g3 {[%clk 0:05:09]} 38... Rcc6 {[%clk 0:06:38.4]} 39. Kf2
{[%clk 0:05:09.8]} 39... Bxc4 {[%clk 0:06:37.7]} 40. bxc4 {[%clk 0:05:10.4]}
40... Kg7 {[%clk 0:06:34.9]} 41. Kf3 {[%clk 0:05:11.4]} 41... Kf8 {[%clk
0:06:22.3]} 42. g4 {[%clk 0:04:52.7]} 42... hxg4+ {[%clk 0:06:23]} 43. Kxg4
{[%clk 0:04:54.6]} 43... Ke8 {[%clk 0:06:10.3]} 44. Kg5 {[%clk 0:04:11.1]} 44...
Kd7 {[%clk 0:06:06.1]} 45. Re4 {[%clk 0:04:04.5]} 45... Rc8 {[%clk 0:06:03.5]}
46. Kg4 {[%clk 0:03:36.3]} 46... Rh8 {[%clk 0:06:03.7]} 47. R4e2 {[%clk
0:03:34.5]} 47... Rh5 {[%clk 0:06:02.8]} 48. Rb1 {[%clk 0:03:34.6]} 48... Rc6
{[%clk 0:05:59.2]} 49. Ree1 {[%clk 0:03:32.3]} 49... e6 {[%clk 0:05:56.7]} 50.
Rh1 {[%clk 0:03:29.3]} 50... Kc7 {[%clk 0:05:55.1]} 51. Kf3 {[%clk 0:03:30.2]}
51... Kb7 {[%clk 0:05:55.8]} 52. Rbg1 {[%clk 0:03:31]} 52... Rc8 {[%clk
0:05:54.2]} 53. Kg3 {[%clk 0:03:13]} 53... Kc7 {[%clk 0:05:52.3]} 54. Rb1 {[%clk
0:03:13.8]} 54... Rch8 {[%clk 0:05:52.2]} 55. Rbg1 {[%clk 0:03:01.5]} 1/2-1/2

[Event "GrandPrix_29.05"]
[Site "Chess.com"]
[Date "2020.05.29"]
[Round "3"]
[White "TimofeevAr"]
[Black "nurgyulsalimova"]
[Result "1-0"]
[WhiteElo "2516"]
[BlackElo "2223"]
[TimeControl "600+2"]
[EndTime "10:20:14 PDT"]
[Termination "TimofeevAr won by resignation"]

1. c4 {[%clk 0:09:59.1]} 1... e6 {[%clk 0:10:00.4]} 2. Nf3 {[%clk 0:09:59.1]}
2... Nf6 {[%clk 0:10:00]} 3. Nc3 {[%clk 0:09:58.6]} 3... d5 {[%clk 0:09:59.3]}
4. e3 {[%clk 0:09:59.5]} 4... Nbd7 {[%clk 0:09:53]} 5. d4 {[%clk 0:09:53.6]}
5... c6 {[%clk 0:09:53.8]} 6. Be2 {[%clk 0:09:51.9]} 6... dxc4 {[%clk
0:09:43.3]} 7. a4 {[%clk 0:09:51]} 7... c5 {[%clk 0:09:02.5]} 8. O-O {[%clk
0:09:43.1]} 8... cxd4 {[%clk 0:09:00.2]} 9. Qxd4 {[%clk 0:09:42.3]} 9... Bc5
{[%clk 0:08:30.7]} 10. Qxc4 {[%clk 0:09:41.1]} 10... Qe7 {[%clk 0:08:29]} 11. b3
{[%clk 0:08:55.7]} 11... O-O {[%clk 0:08:18.9]} 12. Bb2 {[%clk 0:08:56.3]} 12...
b6 {[%clk 0:08:09.9]} 13. Ne4 {[%clk 0:08:55.2]} 13... Bb7 {[%clk 0:07:19.7]}
14. Nxc5 {[%clk 0:08:53.9]} 14... Nxc5 {[%clk 0:07:14.1]} 15. b4 {[%clk
0:08:52.6]} 15... Nce4 {[%clk 0:07:00.8]} 16. Bd4 {[%clk 0:08:38.3]} 16... Rac8
{[%clk 0:06:52.1]} 17. Qb3 {[%clk 0:08:37.3]} 17... Nd5 {[%clk 0:06:39.7]} 18.
b5 {[%clk 0:08:27]} 18... Rfd8 {[%clk 0:05:08.4]} 19. Rfc1 {[%clk 0:08:18.4]}
19... f6 {[%clk 0:04:47.5]} 20. h3 {[%clk 0:08:10.2]} 20... Rc7 {[%clk
0:03:54.8]} 21. Bb2 {[%clk 0:07:36.9]} 21... Rdc8 {[%clk 0:03:49.8]} 22. Rxc7
{[%clk 0:07:27.6]} 22... Rxc7 {[%clk 0:03:51]} 23. Nd4 {[%clk 0:07:23.8]} 23...
Nc5 {[%clk 0:03:16.1]} 24. Qd1 {[%clk 0:07:15]} 24... Ne4 {[%clk 0:03:00]} 25.
Bf3 {[%clk 0:06:56.1]} 25... f5 {[%clk 0:02:22.6]} 26. Bxe4 {[%clk 0:06:49.6]}
26... fxe4 {[%clk 0:02:23.3]} 27. Qg4 {[%clk 0:06:50.6]} 27... Nf6 {[%clk
0:01:57.3]} 28. Qxe6+ {[%clk 0:06:48]} 28... Qxe6 {[%clk 0:01:58.4]} 29. Nxe6
{[%clk 0:06:49.2]} 29... Rc2 {[%clk 0:01:59.4]} 30. Bxf6 {[%clk 0:06:41.9]}
30... gxf6 {[%clk 0:02:01.3]} 31. Nd4 {[%clk 0:06:43]} 31... Rb2 {[%clk
0:01:45]} 32. a5 {[%clk 0:06:42.8]} 32... Bd5 {[%clk 0:01:37.3]} 33. axb6 {[%clk
0:06:42.4]} 33... axb6 {[%clk 0:01:39.2]} 34. Ra6 {[%clk 0:06:42.8]} 34... Rb1+
{[%clk 0:01:38.4]} 35. Kh2 {[%clk 0:06:43.2]} 35... Rb2 {[%clk 0:01:39.4]} 36.
Kg3 {[%clk 0:06:44]} 36... h5 {[%clk 0:01:38.6]} 37. h4 {[%clk 0:06:44.6]} 37...
Kf7 {[%clk 0:01:31.9]} 38. Rxb6 {[%clk 0:06:44.5]} 38... Kg6 {[%clk 0:01:32.4]}
39. Rb8 {[%clk 0:06:33.9]} 39... Bc4 {[%clk 0:01:25.6]} 40. b6 {[%clk
0:06:32.4]} 40... Ba6 {[%clk 0:01:25.9]} 41. Ne6 {[%clk 0:06:25.1]} 41... Bc4
{[%clk 0:01:19.9]} 42. Nc5 {[%clk 0:06:22.5]} 1-0